{"text_format":"2","workbook":"xlsx","n_sheets":2,"sheets":["INFORME1","NOTA 1"],"not_rendered":{"charts":0,"images":0,"macros":0,"external_links":1,"defined_names":4,"comments":0,"pivot_tables":0},"unopened":[],"bounds":{"document_bytes":16777216,"sheet_cells":100000,"run_cost":"one","rows_first":2000,"rows_last":500,"rows_between":2000,"halvings":0,"cell_chars":16384,"cell_head_chars":4096},"cells_cut":0,"cells_raw":0,"read":"whole","date_system":"1900"}

{"sheet":"INFORME1","index":0,"n_rows":129,"n_cols":7,"rows_kept":129,"cut":false,"hidden":false,"merged":[[2,0,2,6]]}
["AMERICA MOVIL PERU S.A.C."]
[]
["INFORME 1: RECONCILIACIÓN DEL ESTADO DE LA SITUACIÓN FINANCIERA ESTATUARIO CON EL DE CONTABILIDAD SEPARADA"]
[]
["Periodo de reporte: Enero a Diciembre 2015"]
[]
["Expresado en Miles de Nuevos Soles","Código Plan Contable","Código PCR","Estado de Situación Financiera Estatuaria","Ajustes","Estado de Situación Financiera de Contabilidad Separada","Número de nota 1/."]
["ACTIVO CORRIENTE",null,null,{"$f":"D9+D10+D11+D12+D13","v":1478777.5962491666},{"$f":"E9+E10+E11+E12+E13","v":-3253.5797299999999},{"$f":"F9+F10+F11+F12+F13","v":1475524.0165191668}]
["    Efectivo y equivalentes de efectivo",10,10,{"$f":"'[1]Hoja de trabajo'!J354/1000","v":30927.663579999993},{"$f":"'[1]Hoja de trabajo'!K354/1000","v":0},{"$f":"'[1]Hoja de trabajo'!L354/1000","v":30927.663579999993}]
["    Cuentas por cobrar a terceros, neto",12,12,{"$f":"'[1]Hoja de trabajo'!J433/1000","v":897202.08229999966},{"$f":"'[1]Hoja de trabajo'!K433/1000","v":-3252.5797299999999},{"$f":"'[1]Hoja de trabajo'!L433/1000","v":893949.50256999966}]
["    Cuentas por cobrar a la principal y vinculadas",13,13,{"$f":"'[1]Hoja de trabajo'!J442/1000","v":5247.9481299999998},{"$f":"'[1]Hoja de trabajo'!K442/1000","v":-1},{"$f":"'[1]Hoja de trabajo'!L442/1000","v":5246.9481299999998}]
["    Existencias, neto",20,20,{"$f":"'[1]Hoja de trabajo'!J463/1000","v":449252.37680999993},{"$f":"'[1]Hoja de trabajo'!K463/1000","v":0},{"$f":"'[1]Hoja de trabajo'!L463/1000","v":449252.37680999993}]
["    Impuesto y gastos pagados anticipado",40,40,{"$f":"'[1]Hoja de trabajo'!J490/1000","v":96147.525429167086},{"$f":"'[1]Hoja de trabajo'!K490/1000","v":0},{"$f":"'[1]Hoja de trabajo'!L490/1000","v":96147.525429167086}]
["ACTIVO NO CORRIENTE",null,null,{"$f":"+D15+D16+D57+D64+D65+D112+D113","v":5622440.0261804881},{"$f":"+E15+E16+E57+E64+E65+E112+E113","v":-2294850.0239676246},{"$f":"+F15+F16+F57+F64+F65+F112+F113","v":3327590.0022128643}]
["    Inversiones",30,30,{"$f":"'[1]Hoja de trabajo'!J497/1000","v":2129837.8118099999},{"$f":"'[1]Hoja de trabajo'!K497/1000","v":-2129837.8118099999},{"$f":"'[1]Hoja de trabajo'!L497/1000","v":0}]
["    Activo Fijo Bruto  ","NOTA1",30,{"$f":"+D17+D49","v":4932098.9766697921},{"$f":"+E17+E49","v":-908046.49092413997},{"$f":"+F17+F49","v":4024052.4857456526},1]
["        Planta y Equipo de Comunicaciones  ","NOTA1",301,{"$f":"+D18+D26+D27+D36+D43","v":3731314.89627979},{"$f":"+E18+E26+E27+E36+E43","v":-1142032.5516147371},{"$f":"+F18+F26+F27+F36+F43","v":2589282.3446650533},1]
["           Equipos terminales  ","NOTA1",3011,{"$f":"+D19+D20+D21+D22+D23+D24+D25","v":672776.2269800026},{"$f":"+E19+E20+E21+E22+E23+E24+E25","v":-32980.076300319954},{"$f":"+F19+F20+F21+F22+F23+F24+F25","v":639796.15067968273},1]
["                Equipos terminales -Teléfonos de Abonados  ","NOTA1",30111,{"$f":"'[1]Hoja de trabajo'!J502/1000","v":11597.60756545937},{"$f":"'[1]Hoja de trabajo'!K502/1000","v":-412.80354042649145},{"$f":"'[1]Hoja de trabajo'!L502/1000","v":11184.804025032878},1]
["                Equipos terminales -Teléfonos Públicos  ","NOTA1",30112,{"$f":"'[1]Hoja de trabajo'!J507/1000","v":59382.208090000364},{"$f":"'[1]Hoja de trabajo'!K507/1000","v":-2310.4861156000043},{"$f":"'[1]Hoja de trabajo'!L507/1000","v":57071.721974400352},1]
["                Equipos Terminales -Televisión de Paga  ","NOTA1",30113,{"$f":"'[1]Hoja de trabajo'!J514/1000","v":155956.67559716088},{"$f":"'[1]Hoja de trabajo'!K514/1000","v":-6680.9818083714899},{"$f":"'[1]Hoja de trabajo'!L514/1000","v":149275.69378878942},1]
["                Equipos Terminales -Internet Fijo  ","NOTA1",30114,{"$f":"'[1]Hoja de trabajo'!J525/1000","v":432153.09703738161},{"$f":"'[1]Hoja de trabajo'!K525/1000","v":-23703.199825921973},{"$f":"'[1]Hoja de trabajo'!L525/1000","v":408449.89721145964},1]
["                Equipos Terminales -Telefonía Móvil  ","NOTA1",30115,{"$f":"'[1]Hoja de trabajo'!J532/1000","v":13686.638690000407},{"$f":"'[1]Hoja de trabajo'!K532/1000","v":127.39499000000022},{"$f":"'[1]Hoja de trabajo'!L532/1000","v":13814.033680000408},1]
["                Equipos Terminales -Internet Móvil  ","NOTA1",30116,{"$f":"'[1]Hoja de trabajo'!J537/1000","v":0},{"$f":"'[1]Hoja de trabajo'!K537/1000","v":0},{"$f":"'[1]Hoja de trabajo'!L537/1000","v":0},1]
["                Otros Equipos Terminales  ","NOTA1",30117,{"$f":"'[1]Hoja de trabajo'!J538/1000","v":0},{"$f":"'[1]Hoja de trabajo'!K538/1000","v":0},{"$f":"'[1]Hoja de trabajo'!L538/1000","v":0},1]
["          Planta y Equipo de Acceso Local  ","NOTA1",3012,{"$f":"'[1]Hoja de trabajo'!J539/1000","v":182435.56471000004},{"$f":"'[1]Hoja de trabajo'!K539/1000","v":-4793.805584639993},{"$f":"'[1]Hoja de trabajo'!L539/1000","v":177641.75912536003},1]
["          Equipos Centrales y de agregación  ","NOTA1",3013,{"$f":"+D28+D29+D30+D31+D32+D33+D34+D35","v":306971.24324426008},{"$f":"+E28+E29+E30+E31+E32+E33+E34+E35","v":-22084.5495689001},{"$f":"+F28+F29+F30+F31+F32+F33+F34+F35","v":284886.69367536},1]
["                Centrales Locales  ","NOTA1",30131,{"$f":"'[1]Hoja de trabajo'!J549/1000","v":0},{"$f":"'[1]Hoja de trabajo'!K549/1000","v":0},{"$f":"'[1]Hoja de trabajo'!L549/1000","v":0},1]
["                Centrales de Larga Distancia Nacional  ","NOTA1",30132,{"$f":"'[1]Hoja de trabajo'!J550/1000","v":41946.125213994826},{"$f":"'[1]Hoja de trabajo'!K550/1000","v":-4899.6910098888984},{"$f":"'[1]Hoja de trabajo'!L550/1000","v":37046.434204105921},1]
["                Centrales de Larga Distancia Internacional  ","NOTA1",30133,{"$f":"'[1]Hoja de trabajo'!J555/1000","v":1198.0286960051515},{"$f":"'[1]Hoja de trabajo'!K555/1000","v":-139.94070731107519},{"$f":"'[1]Hoja de trabajo'!L555/1000","v":1058.0879886940761},1]
["                Controladores  ","NOTA1",30134,{"$f":"'[1]Hoja de trabajo'!J560/1000","v":63804.008669999974},{"$f":"'[1]Hoja de trabajo'!K560/1000","v":-1901.3352511199894},{"$f":"'[1]Hoja de trabajo'!L560/1000","v":61902.673418879989},1]
["                Gateways  ","NOTA1",30135,{"$f":"'[1]Hoja de trabajo'!J575/1000","v":5246.67551},{"$f":"'[1]Hoja de trabajo'!K575/1000","v":-587.7611895199999},{"$f":"'[1]Hoja de trabajo'!L575/1000","v":4658.9143204800002},1]
["                Cabeceras  ","NOTA1",30136,{"$f":"'[1]Hoja de trabajo'!J580/1000","v":10495.710859999999},{"$f":"'[1]Hoja de trabajo'!K580/1000","v":-436.87905152000002},{"$f":"'[1]Hoja de trabajo'!L580/1000","v":10058.831808479999},1]
["                Transmisión de Datos (Servicio Final)  ","NOTA1",30137,{"$f":"'[1]Hoja de trabajo'!J589/1000","v":184280.69429426012},{"$f":"'[1]Hoja de trabajo'!K589/1000","v":-14118.942359540137},{"$f":"'[1]Hoja de trabajo'!L589/1000","v":170161.75193472},1]
["                Otros equipos centrales  ","NOTA1",30138,0,0,0,1]
["          Transmisión (Gran capacidad)  ","NOTA1",3014,{"$f":"+D37+D38+D39+D40+D41+D42","v":956717.99641573988},{"$f":"+E37+E38+E39+E40+E41+E42","v":-61449.402378549916},{"$f":"+F37+F38+F39+F40+F41+F42","v":895268.59403719008},1]
["                Cables de Transmisión (excluidos internacional)  ","NOTA1",30141,{"$f":"'[1]Hoja de trabajo'!J598/1000","v":460922.63992999948},{"$f":"'[1]Hoja de trabajo'!K598/1000","v":-25833.37762637002},{"$f":"'[1]Hoja de trabajo'!L598/1000","v":435089.26230362954},1]
["                Equipos de Transmisión (excluidos internacional)  ","NOTA1",30142,{"$f":"'[1]Hoja de trabajo'!J607/1000","v":236272.16254591243},{"$f":"'[1]Hoja de trabajo'!K607/1000","v":-11658.401055192095},{"$f":"'[1]Hoja de trabajo'!L607/1000","v":224613.76149072035},1]
["                Equipos de Transmisión Radio  ","NOTA1",30143,{"$f":"'[1]Hoja de trabajo'!J628/1000","v":207828.56146000032},{"$f":"'[1]Hoja de trabajo'!K628/1000","v":-18915.866214880025},{"$f":"'[1]Hoja de trabajo'!L628/1000","v":188912.6952451203},1]
["                Equipos de Transmisión por Satélite  ","NOTA1",30144,{"$f":"'[1]Hoja de trabajo'!J641/1000","v":38884.608289999975},{"$f":"'[1]Hoja de trabajo'!K641/1000","v":-4665.3257021599993},{"$f":"'[1]Hoja de trabajo'!L641/1000","v":34219.282587839974},1]
["                Cables y Equipos internacionales (excluyendo satélite)  ","NOTA1",30145,{"$f":"'[1]Hoja de trabajo'!J646/1000","v":2516.3848698276838},{"$f":"'[1]Hoja de trabajo'!K646/1000","v":-103.707698307773},{"$f":"'[1]Hoja de trabajo'!L646/1000","v":2412.6771715199116},1]
["                Otros equipos de transmisión  ","NOTA1",30146,{"$f":"'[1]Hoja de trabajo'!J653/1000","v":10293.639319999986},{"$f":"'[1]Hoja de trabajo'!K653/1000","v":-272.72408164000012},{"$f":"'[1]Hoja de trabajo'!L653/1000","v":10020.915238359989},1]
["           Otros Activos Fijos Brutos de Comunicaciones  ","NOTA1",3015,{"$f":"+D44+D45+D46+D47+D48","v":1612413.8649297873},{"$f":"+E44+E45+E46+E47+E48","v":-1020724.7177823272},{"$f":"+F44+F45+F46+F47+F48","v":591689.14714746061},1]
["                Equipos de Fuerza (Planta Energía Eléctrica)  ","NOTA1",30151,{"$f":"'[1]Hoja de trabajo'!J663/1000","v":72297.170439999652},{"$f":"'[1]Hoja de trabajo'!K663/1000","v":-1195.4507894899909},{"$f":"'[1]Hoja de trabajo'!L663/1000","v":71101.719650509651},1]
["                Sistemas de Gestión de Red  ","NOTA1",30152,{"$f":"'[1]Hoja de trabajo'!J674/1000","v":99239.377270000012},{"$f":"'[1]Hoja de trabajo'!K674/1000","v":-15227.59124344},{"$f":"'[1]Hoja de trabajo'!L674/1000","v":84011.786026560017},1]
["                Equipos para Interconexión  ","NOTA1",30153,{"$f":"'[1]Hoja de trabajo'!J679/1000","v":0},{"$f":"'[1]Hoja de trabajo'!K679/1000","v":0},{"$f":"'[1]Hoja de trabajo'!L679/1000","v":0},1]
["                Equipos para Circuitos Alquilados  ","NOTA1",30154,{"$f":"'[1]Hoja de trabajo'!J680/1000","v":0},{"$f":"'[1]Hoja de trabajo'!K680/1000","v":0},{"$f":"'[1]Hoja de trabajo'!L680/1000","v":0},1]
["                Otros  ","NOTA1",30155,{"$f":"'[1]Hoja de trabajo'!J681/1000","v":1440877.3172197877},{"$f":"'[1]Hoja de trabajo'!K681/1000","v":-1004301.6757493973},{"$f":"'[1]Hoja de trabajo'!L681/1000","v":436575.64147039101},1]
["        Terreno, Edificios, Planta y Equipos no de Telecomunicaciones  ","NOTA1",302,{"$f":"+D50+D51+D52+D53+D54+D55+D56","v":1200784.0803900019},{"$f":"+E50+E51+E52+E53+E54+E55+E56","v":233986.06069059711},{"$f":"+F50+F51+F52+F53+F54+F55+F56","v":1434770.141080599},1]
["           Terrenos  ","NOTA1",3021,{"$f":"'[1]Hoja de trabajo'!J728/1000","v":51033.372719999999},{"$f":"'[1]Hoja de trabajo'!K728/1000","v":322654.04726409377},{"$f":"'[1]Hoja de trabajo'!L728/1000","v":373687.41998409381},1]
["           Edificios  ","NOTA1",3022,{"$f":"'[1]Hoja de trabajo'!J733/1000","v":524839.29336000048},{"$f":"'[1]Hoja de trabajo'!K733/1000","v":-21024.072250646645},{"$f":"'[1]Hoja de trabajo'!L733/1000","v":503815.22110935382},1]
["           Vehículos y Ayudas Mecánicas  ","NOTA1",3023,{"$f":"'[1]Hoja de trabajo'!J744/1000","v":12365.689429999997},{"$f":"'[1]Hoja de trabajo'!K744/1000","v":-1050.5146000000004},{"$f":"'[1]Hoja de trabajo'!L744/1000","v":11315.174829999996},1]
["           Equipos Sistemas Informáticos  ","NOTA1",3024,{"$f":"'[1]Hoja de trabajo'!J753/1000","v":22736.754360000057},{"$f":"'[1]Hoja de trabajo'!K753/1000","v":-3781.9751256499994},{"$f":"'[1]Hoja de trabajo'!L753/1000","v":18954.779234350055},1]
["           Edificios en arrendamiento financiero  ","NOTA1",3025,{"$f":"'[1]Hoja de trabajo'!J764/1000","v":296677.22714000026},{"$f":"'[1]Hoja de trabajo'!K764/1000","v":-25116.453420440004},{"$f":"'[1]Hoja de trabajo'!L764/1000","v":271560.7737195603},1]
["           Otros activos bajo la forma de arrendamiento o leasing  ","NOTA1",3026,{"$f":"'[1]Hoja de trabajo'!J767/1000","v":255801.47098000068},{"$f":"'[1]Hoja de trabajo'!K767/1000","v":-28614.534440149997},{"$f":"'[1]Hoja de trabajo'!L767/1000","v":227186.93653985072},1]
["           Otros Activos no de comunicaciones  ","NOTA1",3027,{"$f":"'[1]Hoja de trabajo'!J776/1000","v":37330.272400000322},{"$f":"'[1]Hoja de trabajo'!K776/1000","v":-9080.436736610005},{"$f":"'[1]Hoja de trabajo'!L776/1000","v":28249.835663390313},1]
["    Activos Intangibles  ","NOTA1",31,{"$f":"+D58+D59+D60+D61+D62+D63","v":1099174.6449899997},{"$f":"+E58+E59+E60+E61+E62+E63","v":-82924.427032359847},{"$f":"+F58+F59+F60+F61+F62+F63","v":1016250.2179576398},1]
["        Concesiones  ","NOTA1",311,{"$f":"'[1]Hoja de trabajo'!J792/1000","v":728092.38067999983},{"$f":"'[1]Hoja de trabajo'!K792/1000","v":-285649.3247744299},{"$f":"'[1]Hoja de trabajo'!L792/1000","v":442443.05590556999},1]
["        Licencias  ","NOTA1",312,{"$f":"'[1]Hoja de trabajo'!J797/1000","v":456842.51648999983},{"$f":"'[1]Hoja de trabajo'!K797/1000","v":-5099.7541196200327},{"$f":"'[1]Hoja de trabajo'!L797/1000","v":451742.76237037982},1]
["        Patentes y propiedad intelectual  ","NOTA1",313,{"$f":"'[1]Hoja de trabajo'!J802/1000","v":0},{"$f":"'[1]Hoja de trabajo'!K802/1000","v":0},{"$f":"'[1]Hoja de trabajo'!L802/1000","v":0},1]
["        Software  ","NOTA1",314,{"$f":"'[1]Hoja de trabajo'!J803/1000","v":6079.1430700000001},{"$f":"'[1]Hoja de trabajo'!K803/1000","v":30.842441269999515},{"$f":"'[1]Hoja de trabajo'!L803/1000","v":6109.9855112699988},1]
["        Investigación y Desarrollo  ","NOTA1",315,{"$f":"'[1]Hoja de trabajo'!J808/1000","v":0},{"$f":"'[1]Hoja de trabajo'!K808/1000","v":0},{"$f":"'[1]Hoja de trabajo'!L808/1000","v":0},1]
["        Otros Activos Intangibles  ","NOTA1",316,{"$f":"'[1]Hoja de trabajo'!J809/1000","v":-91839.395250000031},{"$f":"'[1]Hoja de trabajo'!K809/1000","v":207793.80942042006},{"$f":"'[1]Hoja de trabajo'!L809/1000","v":115954.41417041999},1]
["    Otros Activos No Corrientes  ","NOTA1",32,{"$f":"'[1]Hoja de trabajo'!J821/1000","v":0},{"$f":"'[1]Hoja de trabajo'!K821/1000","v":333130.0226888645},{"$f":"'[1]Hoja de trabajo'!L821/1000","v":333130.0226888645},1]
["     Depreciación del Activo Fijo Bruto, y Amortización  ","NOTA1",33,{"$f":"+D66+D98+D105","v":-2599052.4375101379},{"$f":"+E66+E98+E105","v":492828.68311001081},{"$f":"+F66+F98+F105","v":-2106223.7544001266},1]
["        Depreciación de Planta y Equipo de Comunicaciones  ","NOTA1",341,{"$f":"+D67+D75+D76+D85+D92","v":-1703460.8019791378},{"$f":"+E67+E75+E76+E85+E92","v":423903.91777180356},{"$f":"+F67+F75+F76+F85+F92","v":-1279556.8842073341},1]
["            Equipos terminales  ","NOTA1",3411,{"$f":"D68+D69+D70+D71+D72+D73+D74","v":-475314.09261999722},{"$f":"E68+E69+E70+E71+E72+E73+E74","v":20701.226909199988},{"$f":"F68+F69+F70+F71+F72+F73+F74","v":-454612.86571079725},1]
["                Equipos terminales -Teléfonos de Abonados  ","NOTA1",34111,{"$f":"'[1]Hoja de trabajo'!J829/1000","v":-8049.7001918968281},{"$f":"'[1]Hoja de trabajo'!K829/1000","v":184.67474973148916},{"$f":"'[1]Hoja de trabajo'!L829/1000","v":-7865.0254421653381},1]
["                Equipos terminales -Teléfonos Públicos  ","NOTA1",34112,{"$f":"'[1]Hoja de trabajo'!J834/1000","v":-35250.024409999693},{"$f":"'[1]Hoja de trabajo'!K834/1000","v":1568.9137781600018},{"$f":"'[1]Hoja de trabajo'!L834/1000","v":-33681.110631839692},1]
["                Equipos Terminales -Televisión de Paga  ","NOTA1",34113,{"$f":"'[1]Hoja de trabajo'!J841/1000","v":-125580.42335981986},{"$f":"'[1]Hoja de trabajo'!K841/1000","v":3448.3923299840208},{"$f":"'[1]Hoja de trabajo'!L841/1000","v":-122132.03102983584},1]
["                Equipos Terminales -Internet Fijo  ","NOTA1",34114,{"$f":"'[1]Hoja de trabajo'!J852/1000","v":-293996.54438828048},{"$f":"'[1]Hoja de trabajo'!K852/1000","v":15499.246051324475},{"$f":"'[1]Hoja de trabajo'!L852/1000","v":-278497.29833695607},1]
["                Equipos Terminales -Telefonía Móvil  ","NOTA1",34115,{"$f":"'[1]Hoja de trabajo'!J859/1000","v":-12437.40027000034},{"$f":"'[1]Hoja de trabajo'!K859/1000","v":0},{"$f":"'[1]Hoja de trabajo'!L859/1000","v":-12437.40027000034},1]
["                Equipos Terminales -Internet Móvil  ","NOTA1",34116,{"$f":"'[1]Hoja de trabajo'!J864/1000","v":0},{"$f":"'[1]Hoja de trabajo'!K864/1000","v":0},{"$f":"'[1]Hoja de trabajo'!L864/1000","v":0},1]
["                Otros Equipos Terminales  ","NOTA1",34117,{"$f":"'[1]Hoja de trabajo'!J865/1000","v":0},{"$f":"'[1]Hoja de trabajo'!K865/1000","v":0},{"$f":"'[1]Hoja de trabajo'!L865/1000","v":0},1]
["            Planta y Equipo de Acceso Local  ","NOTA1",3412,{"$f":"'[1]Hoja de trabajo'!J866/1000","v":-126246.76007000005},{"$f":"'[1]Hoja de trabajo'!K866/1000","v":1333.3307018399973},{"$f":"'[1]Hoja de trabajo'!L866/1000","v":-124913.42936816004},1]
["            Equipos Centrales y de agregación  ","NOTA1",3413,{"$f":"+D77+D78+D79+D80+D81+D82+D83+D84","v":-193678.09010723198},{"$f":"+E77+E78+E79+E80+E81+E82+E83+E84","v":16468.887567412814},{"$f":"+F77+F78+F79+F80+F81+F82+F83+F84","v":-177209.20253981918},1]
["                Centrales Locales  ","NOTA1",34131,{"$f":"'[1]Hoja de trabajo'!J876/1000","v":0},{"$f":"'[1]Hoja de trabajo'!K876/1000","v":0},{"$f":"'[1]Hoja de trabajo'!L876/1000","v":0},1]
["                Centrales de Larga Distancia Nacional  ","NOTA1",34132,{"$f":"'[1]Hoja de trabajo'!J877/1000","v":-31479.672413286506},{"$f":"'[1]Hoja de trabajo'!K877/1000","v":4166.6569148852232},{"$f":"'[1]Hoja de trabajo'!L877/1000","v":-27313.015498401284},1]
["                Centrales de Larga Distancia Internacional  ","NOTA1",34133,{"$f":"'[1]Hoja de trabajo'!J882/1000","v":-899.09498671348786},{"$f":"'[1]Hoja de trabajo'!K882/1000","v":119.00442591477663},{"$f":"'[1]Hoja de trabajo'!L882/1000","v":-780.09056079871129},1]
["                Controladores  ","NOTA1",34134,{"$f":"'[1]Hoja de trabajo'!J887/1000","v":-29641.091430000008},{"$f":"'[1]Hoja de trabajo'!K887/1000","v":846.09442776000037},{"$f":"'[1]Hoja de trabajo'!L887/1000","v":-28794.997002240008},1]
["                Gateways  ","NOTA1",34135,{"$f":"'[1]Hoja de trabajo'!J902/1000","v":-2428.2100600000003},{"$f":"'[1]Hoja de trabajo'!K902/1000","v":540.07188639999993},{"$f":"'[1]Hoja de trabajo'!L902/1000","v":-1888.1381736000001},1]
["                Cabeceras  ","NOTA1",34136,{"$f":"'[1]Hoja de trabajo'!J907/1000","v":-5091.3802100000003},{"$f":"'[1]Hoja de trabajo'!K907/1000","v":209.66933288000001},{"$f":"'[1]Hoja de trabajo'!L907/1000","v":-4881.7108771200001},1]
["                Transmisión de Datos (Servicio Final)  ","NOTA1",34137,{"$f":"'[1]Hoja de trabajo'!J916/1000","v":-124138.64100723198},{"$f":"'[1]Hoja de trabajo'!K916/1000","v":10587.390579572815},{"$f":"'[1]Hoja de trabajo'!L916/1000","v":-113551.25042765916},1]
["                Otros equipos centrales  ","NOTA1",34138,{"$f":"'[1]Hoja de trabajo'!J923/1000","v":0},{"$f":"'[1]Hoja de trabajo'!K923/1000","v":0},{"$f":"'[1]Hoja de trabajo'!L923/1000","v":0},1]
["            Transmisión (Gran capacidad)  ","NOTA1",3414,{"$f":"+D86+D87+D88+D89+D90+D91","v":-317294.35111276491},{"$f":"+E86+E87+E88+E89+E90+E91","v":36566.207645167182},{"$f":"+F86+F87+F88+F89+F90+F91","v":-280728.14346759772},1]
["                Cables de Transmisión (excluidos internacional)  ","NOTA1",34141,{"$f":"'[1]Hoja de trabajo'!J925/1000","v":-131421.00130999979},{"$f":"'[1]Hoja de trabajo'!K925/1000","v":11699.404572500001},{"$f":"'[1]Hoja de trabajo'!L925/1000","v":-119721.5967374998},1]
["                Equipos de Transmisión (excluidos internacional) ","NOTA1",34142,{"$f":"'[1]Hoja de trabajo'!J934/1000","v":-85313.586361486232},{"$f":"'[1]Hoja de trabajo'!K934/1000","v":7424.1124760099592},{"$f":"'[1]Hoja de trabajo'!L934/1000","v":-77889.473885476269},1]
["                Equipos de Transmisión Radio  ","NOTA1",34143,{"$f":"'[1]Hoja de trabajo'!J955/1000","v":-73208.705699997197},{"$f":"'[1]Hoja de trabajo'!K955/1000","v":13115.777034719998},{"$f":"'[1]Hoja de trabajo'!L955/1000","v":-60092.928665277192},1]
["                Equipos de Transmisión por Satélite  ","NOTA1",34144,{"$f":"'[1]Hoja de trabajo'!J968/1000","v":-22704.159709999982},{"$f":"'[1]Hoja de trabajo'!K968/1000","v":4141.7217336800013},{"$f":"'[1]Hoja de trabajo'!L968/1000","v":-18562.437976319983},1]
["                Cables y Equipos internacionales (excluyendo satélite)  ","NOTA1",34145,{"$f":"'[1]Hoja de trabajo'!J973/1000","v":-657.24171128171076},{"$f":"'[1]Hoja de trabajo'!K973/1000","v":51.947998177222452},{"$f":"'[1]Hoja de trabajo'!L973/1000","v":-605.29371310448835},1]
["                Otros equipos de transmisión  ","NOTA1",34146,{"$f":"'[1]Hoja de trabajo'!J980/1000","v":-3989.6563200000037},{"$f":"'[1]Hoja de trabajo'!K980/1000","v":133.24383008000001},{"$f":"'[1]Hoja de trabajo'!L980/1000","v":-3856.4124899200037},1]
["            Otros Activos Fijos Brutos de Comunicaciones  ","NOTA1",3415,{"$f":"+D93+D94+D95+D96+D97","v":-590927.50806914363},{"$f":"+E93+E94+E95+E96+E97","v":348834.26494818355},{"$f":"+F93+F94+F95+F96+F97","v":-242093.24312096002},1]
["                Equipos de Fuerza (Planta Energía Eléctrica)  ","NOTA1",34151,{"$f":"'[1]Hoja de trabajo'!J990/1000","v":-29185.845470000007},{"$f":"'[1]Hoja de trabajo'!K990/1000","v":3664.2193891999941},{"$f":"'[1]Hoja de trabajo'!L990/1000","v":-25521.626080800012},1]
["                Sistemas de Gestión de Red  ","NOTA1",34152,{"$f":"'[1]Hoja de trabajo'!J1001/1000","v":-47338.276690000021},{"$f":"'[1]Hoja de trabajo'!K1001/1000","v":13414.95503848},{"$f":"'[1]Hoja de trabajo'!L1001/1000","v":-33923.321651520026},1]
["                Equipos para Interconexión  ","NOTA1",34153,{"$f":"'[1]Hoja de trabajo'!J1006/1000","v":0},{"$f":"'[1]Hoja de trabajo'!K1006/1000","v":0},{"$f":"'[1]Hoja de trabajo'!L1006/1000","v":0},1]
["                Equipos para Circuitos Alquilados  ","NOTA1",34154,{"$f":"'[1]Hoja de trabajo'!J1007/1000","v":0},{"$f":"'[1]Hoja de trabajo'!K1007/1000","v":0},{"$f":"'[1]Hoja de trabajo'!L1007/1000","v":0},1]
["                Otros  ","NOTA1",34155,{"$f":"'[1]Hoja de trabajo'!J1008/1000","v":-514403.3859091436},{"$f":"'[1]Hoja de trabajo'!K1008/1000","v":331755.09052050358},{"$f":"'[1]Hoja de trabajo'!L1008/1000","v":-182648.29538863996},1]
["            Depreciación de Edificios, y Planta y Equipos no de Telecomunicaciones  ","NOTA1",342,{"$f":"+D99+D100+D101+D102+D103+D104","v":-340851.71550000022},{"$f":"+E99+E100+E101+E102+E103+E104","v":47472.657446867321},{"$f":"+F99+F100+F101+F102+F103+F104","v":-293379.0580531329},1]
["                Edificios  ","NOTA1",3421,{"$f":"'[1]Hoja de trabajo'!J1037/1000","v":-81000.161710000088},{"$f":"'[1]Hoja de trabajo'!K1037/1000","v":6510.6282564573312},{"$f":"'[1]Hoja de trabajo'!L1037/1000","v":-74489.533453542739},1]
["                Vehículos y Ayudas Mecánicas  ","NOTA1",3422,{"$f":"'[1]Hoja de trabajo'!J1048/1000","v":-8067.9394900000043},{"$f":"'[1]Hoja de trabajo'!K1048/1000","v":920.68396999999993},{"$f":"'[1]Hoja de trabajo'!L1048/1000","v":-7147.2555200000043},1]
["                Equipos Sistemas Informáticos  ","NOTA1",3423,{"$f":"'[1]Hoja de trabajo'!J1057/1000","v":-15902.646579999797},{"$f":"'[1]Hoja de trabajo'!K1057/1000","v":3665.0871356099992},{"$f":"'[1]Hoja de trabajo'!L1057/1000","v":-12237.559444389797},1]
["                Edificios en arrendamiento financiero  ","NOTA1",3424,{"$f":"'[1]Hoja de trabajo'!J1068/1000","v":-72625.861469999989},{"$f":"'[1]Hoja de trabajo'!K1068/1000","v":6554.7366175599973},{"$f":"'[1]Hoja de trabajo'!L1068/1000","v":-66071.124852439985},1]
["                Otros activos bajo la forma de arrendamiento o leasing  ","NOTA1",3425,{"$f":"'[1]Hoja de trabajo'!J1071/1000","v":-141243.50144000023},{"$f":"'[1]Hoja de trabajo'!K1071/1000","v":19987.274337169994},{"$f":"'[1]Hoja de trabajo'!L1071/1000","v":-121256.22710283023},1]
["                Otros Activos no de comunicaciones  ","NOTA1",3426,{"$f":"'[1]Hoja de trabajo'!J1080/1000","v":-22011.604810000092},{"$f":"'[1]Hoja de trabajo'!K1080/1000","v":9834.2471300700017},{"$f":"'[1]Hoja de trabajo'!L1080/1000","v":-12177.357679930092},1]
["            Amortización de Intangibles  ","NOTA1",343,{"$f":"+D106+D107+D108+D109+D110+D111","v":-554739.92003099993},{"$f":"+E106+E107+E108+E109+E110+E111","v":21452.107891339925},{"$f":"+F106+F107+F108+F109+F110+F111","v":-533287.81213965989},1]
["                Concesiones  ","NOTA1",3431,{"$f":"'[1]Hoja de trabajo'!J1096/1000","v":-387053.45500099991},{"$f":"'[1]Hoja de trabajo'!K1096/1000","v":179859.48083529994},{"$f":"'[1]Hoja de trabajo'!L1096/1000","v":-207193.9741657},1]
["                Licencias  ","NOTA1",3432,{"$f":"'[1]Hoja de trabajo'!J1101/1000","v":-294740.82482999994},{"$f":"'[1]Hoja de trabajo'!K1101/1000","v":1138.8828712200179},{"$f":"'[1]Hoja de trabajo'!L1101/1000","v":-293601.94195877988},1]
["                Patentes y propiedad intelectual  ","NOTA1",3433,{"$f":"'[1]Hoja de trabajo'!J1106/1000","v":0},{"$f":"'[1]Hoja de trabajo'!K1106/1000","v":0},{"$f":"'[1]Hoja de trabajo'!L1106/1000","v":0},1]
["                Software  ","NOTA1",3434,{"$f":"'[1]Hoja de trabajo'!J1107/1000","v":-1984.8704300000002},{"$f":"'[1]Hoja de trabajo'!K1107/1000","v":-13.864466709999906},{"$f":"'[1]Hoja de trabajo'!L1107/1000","v":-1998.7348967099999},1]
["                Investigación y Desarrollo  ","NOTA1",3435,{"$f":"'[1]Hoja de trabajo'!J1112/1000","v":0},{"$f":"'[1]Hoja de trabajo'!K1112/1000","v":0},{"$f":"'[1]Hoja de trabajo'!L1112/1000","v":0},1]
["               Otros Activos Intangibles  ","NOTA1",3436,{"$f":"'[1]Hoja de trabajo'!J1113/1000","v":129039.23023000003},{"$f":"'[1]Hoja de trabajo'!K1113/1000","v":-159532.39134847003},{"$f":"'[1]Hoja de trabajo'!L1113/1000","v":-30493.161118470001},1]
["    Gastos contratados por anticipado a largo plazo",18,18,{"$f":"'[1]Hoja de trabajo'!J1125/1000","v":5027.245410833335},{"$f":"'[1]Hoja de trabajo'!K1125/1000","v":0},{"$f":"'[1]Hoja de trabajo'!L1125/1000","v":5027.245410833335}]
["    Activo por impuesto a las ganancias diferido, neto",49,49,{"$f":"'[1]Hoja de trabajo'!J1130/1000","v":55353.784810000005},{"$f":"'[1]Hoja de trabajo'!K1130/1000","v":0},{"$f":"'[1]Hoja de trabajo'!L1130/1000","v":55353.784810000005}]
["PASIVO CORRIENTE",null,null,{"$f":"+D115+D116+D117+D118+D119","v":-1555630.4625660332},{"$f":"+E115+E116+E117+E118+E119","v":68.171779999999998},{"$f":"+F115+F116+F117+F118+F119","v":-1555562.2907860333}]
["    Cuentas por pagar comerciales",42,42,{"$f":"'[1]Hoja de trabajo'!J1200/1000","v":-1053134.5157899999},{"$f":"'[1]Hoja de trabajo'!K1200/1000","v":0},{"$f":"'[1]Hoja de trabajo'!L1200/1000","v":-1053134.5157899999}]
["    Cuentas por pagar a la principal y vinculadas",43,43,{"$f":"'[1]Hoja de trabajo'!J1210/1000","v":-43598.419909999997},{"$f":"'[1]Hoja de trabajo'!K1210/1000","v":0},{"$f":"'[1]Hoja de trabajo'!L1210/1000","v":-43598.419909999997}]
["    Deuda Corto Plazo",45,45,{"$f":"'[1]Hoja de trabajo'!J1215/1000","v":-22923.077410000002},{"$f":"'[1]Hoja de trabajo'!K1215/1000","v":0},{"$f":"'[1]Hoja de trabajo'!L1215/1000","v":-22923.077410000002}]
["    Otras cuentas por pagar",46,46,{"$f":"'[1]Hoja de trabajo'!J1275/1000","v":-287980.13806999999},{"$f":"'[1]Hoja de trabajo'!K1275/1000","v":68.171779999999998},{"$f":"'[1]Hoja de trabajo'!L1275/1000","v":-287911.96628999995}]
["    Ingresos Diferidos",491,491,{"$f":"'[1]Hoja de trabajo'!J1278/1000","v":-147994.31138603372},{"$f":"'[1]Hoja de trabajo'!K1278/1000","v":0},{"$f":"'[1]Hoja de trabajo'!L1278/1000","v":-147994.31138603372}]
["PASIVO NO CORRIENTE",null,null,{"$f":"+D121+D122","v":-245084.87479396627},{"$f":"+E121+E122","v":0},{"$f":"+F121+F122","v":-245084.87479396627}]
["    Ingresos Diferidos",491,491,{"$f":"'[1]Hoja de trabajo'!J1299/1000","v":-118868.60779396626},{"$f":"'[1]Hoja de trabajo'!K1299/1000","v":0},{"$f":"'[1]Hoja de trabajo'!L1299/1000","v":-118868.60779396626}]
["    Provisión de desmantelamiento de equipos",461,461,{"$f":"'[1]Hoja de trabajo'!J1302/1000","v":-126216.26700000001},{"$f":"'[1]Hoja de trabajo'!K1302/1000","v":0},{"$f":"'[1]Hoja de trabajo'!L1302/1000","v":-126216.26700000001}]
["PATRIMONIO NETO",null,null,{"$f":"+D124+D125+D126+D127+D128+D129","v":-5300502.2850700002},{"$f":"+E124+E125+E126+E127+E128+E129","v":2298035.4319176245},{"$f":"+F124+F125+F126+F127+F128+F129","v":-3002466.8531523757}]
["    Capital Social",50,50,{"$f":"'[1]Hoja de trabajo'!J1306/1000","v":-2030882.6018400001},0,-2030882.6018400001]
["    Descuento Capital",52,52,{"$f":"'[1]Hoja de trabajo'!J1312/1000","v":-403.58350000000002},0,-403.58350000000002]
["    Reserva Legal",58,58,{"$f":"'[1]Hoja de trabajo'!J1315/1000","v":-406176.52036999998},0,-406176.52036999998]
["    Otras Reservas",581,581,{"$f":"'[1]Hoja de trabajo'!J1318/1000","v":-2801090.4674499999},0,-2801090.4674499999]
["    Resultados por traslación ",59,59,{"$f":"'[1]Hoja de trabajo'!J1321/1000","v":13208.842419999999},0,13208.842419999999]
["    Resultados Acumulados",591,591,{"$f":"'[1]Hoja de trabajo'!J1324/1000","v":-75157.954329999979},{"$f":"'[1]Hoja de trabajo'!K1324/1000","v":2298035.4319176245},{"$f":"'[1]Hoja de trabajo'!L1324/1000","v":2222877.4775876245}]

{"sheet":"NOTA 1","index":1,"n_rows":434,"n_cols":5,"rows_kept":434,"cut":false,"hidden":false,"merged":[[2,0,2,3],[3,0,3,3]]}
["AMERICA MOVIL PERU SAC"]
[]
["NOTA1"]
["Homologación Plan Contable Regulatorio y Cuentas contables Activo Fijo"]
[]
["Código PCR","Descripción Código PCR","Cta Local PCGE","Descripción Código Plan contable","Código Plan Contable"]
[30111,"Equipos terminales -Teléfonos de Abonados  ",3362102139,"CPE - MANTENIMIENTO CLIENTES","NOTA1"]
[30111,"Equipos terminales -Teléfonos de Abonados  ",3362101738,"REVAL. MANTENIMIENTO CLIENTES","NOTA1"]
[30111,"Equipos terminales -Teléfonos de Abonados  ",3362101005,"CPE - CABLE MODEM CLIENTE","NOTA1"]
[30111,"Equipos terminales -Teléfonos de Abonados  ",3362101006,"REVAL. CABLE MODEM CLIENTE","NOTA1"]
[30112,"Equipos terminales -Teléfonos Públicos  ",3369101000,"TELEFONIA PUBLICA RURAL TPR","NOTA1"]
[30112,"Equipos terminales -Teléfonos Públicos  ",3369108000,"REVAL. TELEFONOS PUBLICOS-TELEFONIA PUBLICA RURAL","NOTA1"]
[30112,"Equipos terminales -Teléfonos Públicos  ",3362101007,"PTE - EQUIPO PARA TELEFONIA PUBLICA","NOTA1"]
[30112,"Equipos terminales -Teléfonos Públicos  ",3362101308,"REVAL. EQUIPO PARA TELEFONIA PUBLICA","NOTA1"]
[30112,"Equipos terminales -Teléfonos Públicos  ",3362101723,"PTE - EQUIPO MTTO. TPI/TPE","NOTA1"]
[30112,"Equipos terminales -Teléfonos Públicos  ",3362101023,"REVAL. PTE - Equipo Mtto. TPI/TPE","NOTA1"]
[30113,"Equipos Terminales -Televisión de Paga  ",3362102142,"CPE - SET TOP BOX","NOTA1"]
[30113,"Equipos Terminales -Televisión de Paga  ",3362101209,"REVAL. SET TOP BOX","NOTA1"]
[30113,"Equipos Terminales -Televisión de Paga  ",3362102139,"CPE - MANTENIMIENTO CLIENTES","NOTA1"]
[30113,"Equipos Terminales -Televisión de Paga  ",3362101738,"REVAL. MANTENIMIENTO CLIENTES","NOTA1"]
[30113,"Equipos Terminales -Televisión de Paga  ",3362102138,"CPE - ANTENAS CLIENTES","NOTA1"]
[30113,"Equipos Terminales -Televisión de Paga  ",3362101208,"REVAL. ANTENAS CLIENTES","NOTA1"]
[30113,"Equipos Terminales -Televisión de Paga  ",3362101025,"CPE - LNB","NOTA1"]
[30113,"Equipos Terminales -Televisión de Paga  ",3362101137,"REVAL. LNB","NOTA1"]
[30113,"Equipos Terminales -Televisión de Paga  ",3362102140,"CPE - LNB ABONADO","NOTA1"]
[30113,"Equipos Terminales -Televisión de Paga  ",3362101008,"REVAL. LNB ABONADO","NOTA1"]
[30114,"Equipos Terminales -Internet Fijo  ",3362101003,"CPE - EQUIPO CPE CLIENTES","NOTA1"]
[30114,"Equipos Terminales -Internet Fijo  ",3362101207,"REVAL. EQUIPO CPE CLIENTES","NOTA1"]
[30114,"Equipos Terminales -Internet Fijo  ",3362102139,"CPE - MANTENIMIENTO CLIENTES","NOTA1"]
[30114,"Equipos Terminales -Internet Fijo  ",3362101738,"REVAL. MANTENIMIENTO CLIENTES","NOTA1"]
[30114,"Equipos Terminales -Internet Fijo  ",3362101005,"CPE - CABLE MODEM CLIENTE","NOTA1"]
[30114,"Equipos Terminales -Internet Fijo  ",3362101006,"REVAL. CABLE MODEM CLIENTE","NOTA1"]
[30115,"Equipos Terminales -Telefonía Móvil  ",3369102200,"MSC - CELULARES CLIENTES CONSUMER","NOTA1"]
[30115,"Equipos Terminales -Telefonía Móvil  ",3362101601,"REVAL. CELULARES CLIENTES CONSUMER","NOTA1"]
[30115,"Equipos Terminales -Telefonía Móvil  ",3369102000,"MSC - CELULARES CLIENTES BUSINESS","NOTA1"]
[30115,"Equipos Terminales -Telefonía Móvil  ",3362101602,"REVAL. CELULARES CLIENTES BUSINESS","NOTA1"]
[3012,"Planta y Equipo de Acceso Local  ",3362102144,"UM - ACOMETIDAS/INSTALACION EN CLIENTES","NOTA1"]
[3012,"Planta y Equipo de Acceso Local  ",3362101211,"REVAL. ACOMETIDAS/INSTALACION EN CLIENTES","NOTA1"]
[3012,"Planta y Equipo de Acceso Local  ",3362101031,"UM - ACOPLADORES DE RED","NOTA1"]
[3012,"Planta y Equipo de Acceso Local  ",3362101043,"REVAL. ACOPLADORES DE RED","NOTA1"]
[3012,"Planta y Equipo de Acceso Local  ",3362101116,"UM - AMPLIFICADORES","NOTA1"]
[3012,"Planta y Equipo de Acceso Local  ",3362101119,"REVAL. AMPLIFICADORES","NOTA1"]
[3012,"Planta y Equipo de Acceso Local  ",3362101117,"UM - ANTENAS RECEPTORAS","NOTA1"]
[3012,"Planta y Equipo de Acceso Local  ",3362101120,"REVAL. ANTENAS RECEPTORAS","NOTA1"]
[30132,"Centrales de Larga Distancia Nacional  ",3362101001,"CX - CENTRALES TELEFONICAS ( SOFTSWITCH )","NOTA1"]
[30132,"Centrales de Larga Distancia Nacional  ",3362101002,"REVAL. CENTRALES TELEFONICAS ( SOFTSWITCH )","NOTA1"]
[30132,"Centrales de Larga Distancia Nacional  ",3362101011,"CONMUTADORES PARA DATOS","NOTA1"]
[30132,"Centrales de Larga Distancia Nacional  ",3362101101,"REVAL. CONMUTADORES PARA DATOS","NOTA1"]
[30133,"Centrales de Larga Distancia Internacional  ",3362101001,"CX - CENTRALES TELEFONICAS ( SOFTSWITCH )","NOTA1"]
[30133,"Centrales de Larga Distancia Internacional  ",3362101002,"REVAL. CENTRALES TELEFONICAS ( SOFTSWITCH )","NOTA1"]
[30133,"Centrales de Larga Distancia Internacional  ",3362101011,"CONMUTADORES PARA DATOS","NOTA1"]
[30133,"Centrales de Larga Distancia Internacional  ",3362101101,"REVAL. CONMUTADORES PARA DATOS","NOTA1"]
[30134,"Controladores  ",3362101000,"BASE STATION CONTROLLER (BSC)","NOTA1"]
[30134,"Controladores  ",3362108000,"REVAL. BASE STATION CONTROLLER (BSC)","NOTA1"]
[30134,"Controladores  ",3362101016,"CENTRAL DE DATOS GPRS","NOTA1"]
[30134,"Controladores  ",3362108001,"REVAL. DE CENTRAL DE DATOS GPRS","NOTA1"]
[30134,"Controladores  ",3362101024,"MOBILE SERVICES SWITCHING CENTER (MSSC)","NOTA1"]
[30134,"Controladores  ",3362101036,"REVAL. MOBILE SERVICES SWITCHING CENTER","NOTA1"]
[30134,"Controladores  ",3362101018,"MSC SERVER","NOTA1"]
[30134,"Controladores  ",3362108004,"REVAL. DE MSC SERVER","NOTA1"]
[30134,"Controladores  ",3362101019,"RADIO NETWORK CONTROLLER","NOTA1"]
[30134,"Controladores  ",3362108005,"REVAL. CX - RADIO NETWORK CONTROLLER (RNC) 3G","NOTA1"]
[30134,"Controladores  ",3362101035,"CENTRAL DE DATOS 4G","NOTA1"]
[30134,"Controladores  ",3362101047,"REVAL. CX - CENTRAL DE DATOS (4G)","NOTA1"]
[30134,"Controladores  ",3362101108,"PTI - CONTROLADORES CMTS","NOTA1"]
[30134,"Controladores  ",3362101227,"REVAL. CONTROLADORES CMTS","NOTA1"]
[30135,"Gateways  ",3362101017,"MEDIA GATEWAY","NOTA1"]
[30135,"Gateways  ",3362108002,"REVAL. DE MEDIA GATEWAY","NOTA1"]
[30135,"Gateways  ",3362101138,"PTI - CONVERSORES","NOTA1"]
[30135,"Gateways  ",3362108007,"REVAL. CONVERSORES","NOTA1"]
[30136,"Cabeceras  ",3362101107,"PTI - CODIFICADORES/DECODIFICADORES","NOTA1"]
[30136,"Cabeceras  ",3362101106,"REVAL. CODIFICADORES/DECODIFICADORES","NOTA1"]
[30136,"Cabeceras  ",3362101030,"PTI - EQUIPO DE CABECERA","NOTA1"]
[30136,"Cabeceras  ",3362101042,"REVAL. EQUIPO DE CABECERA","NOTA1"]
[30136,"Cabeceras  ",3362101110,"PTI - GABINETES/CHASIS/RACKS","NOTA1"]
[30136,"Cabeceras  ",3362101189,"REVAL. GABINETES/CHASIS/RACKS","NOTA1"]
[30136,"Cabeceras  ",3362101112,"PTI - MODULADORES/DEMODULADORES","NOTA1"]
[30136,"Cabeceras  ",3362101186,"REVAL. MODULADORES/DEMODULADORES","NOTA1"]
[30137,"Transmisión de Datos (Servicio Final)  ",3362101109,"PTI - EQUIPO DE ACCESO A RED DE DATOS","NOTA1"]
[30137,"Transmisión de Datos (Servicio Final)  ",3362103139,"REVAL. PTI - EQUIPO DE ACCESO A RED DE DATOS","NOTA1"]
[30137,"Transmisión de Datos (Servicio Final)  ",3362101114,"PTI - SWITCHES","NOTA1"]
[30137,"Transmisión de Datos (Servicio Final)  ",3362107189,"REVAL. SWITCHES","NOTA1"]
[30137,"Transmisión de Datos (Servicio Final)  ",3362101123,"RUTEADORES CELULARES","NOTA1"]
[30137,"Transmisión de Datos (Servicio Final)  ",3362108015,"REVAL. TX - RUTEADORES CELULARES","NOTA1"]
[30141,"Cables de Transmisión (excluidos internacional)  ",3362101026,"PTE - CABLE  DE FIBRA OPTICA","NOTA1"]
[30141,"Cables de Transmisión (excluidos internacional)  ",3362101038,"REVAL. CABLE  DE FIBRA OPTICA","NOTA1"]
[30141,"Cables de Transmisión (excluidos internacional)  ",3324102309,"PTE - CABLE DE COBRE","NOTA1"]
[30141,"Cables de Transmisión (excluidos internacional)  ",3324108211,"REVAL. CABLE DE COBRE","NOTA1"]
[30141,"Cables de Transmisión (excluidos internacional)  ",3324102300,"TX - CABLE  DE FIBRA ÓPTICA","NOTA1"]
[30141,"Cables de Transmisión (excluidos internacional)  ",3324108202,"REVAL. CABLE  DE FIBRA OPTICA","NOTA1"]
[30141,"Cables de Transmisión (excluidos internacional)  ",3362101009,"PTE - CABLE COAXIAL","NOTA1"]
[30141,"Cables de Transmisión (excluidos internacional)  ",3362101004,"REVAL. CABLE COAXIAL","NOTA1"]
[30142,"Equipos de Transmisión (excluidos internacional)  ",3362101238,"PTE - NODOS OPTICOS","NOTA1"]
[30142,"Equipos de Transmisión (excluidos internacional)  ",3362101105,"REVAL. NODOS OPTECOS","NOTA1"]
[30142,"Equipos de Transmisión (excluidos internacional)  ",3362101115,"PTI - TRANSMISORES OPTICOS","NOTA1"]
[30142,"Equipos de Transmisión (excluidos internacional)  ",3362103124,"REVAL. PTI - TRANSMISORES OPTICOS","NOTA1"]
[30142,"Equipos de Transmisión (excluidos internacional)  ",3362101139,"TX - CONMUTADORES PARA DATOS","NOTA1"]
[30142,"Equipos de Transmisión (excluidos internacional)  ",3362108010,"REVAL. CONMUTADORES PARA DATOS","NOTA1"]
[30142,"Equipos de Transmisión (excluidos internacional)  ",3362101140,"TX - EQUIPO OPTICO","NOTA1"]
[30142,"Equipos de Transmisión (excluidos internacional)  ",3362108011,"REVAL. EQUIPO OPTICO","NOTA1"]
[30142,"Equipos de Transmisión (excluidos internacional)  ",3362101141,"TX - GABINETES/CHASIS/RACKS","NOTA1"]
[30142,"Equipos de Transmisión (excluidos internacional)  ",3362108012,"REVAL. GABINETES/CHASIS/RACKS","NOTA1"]
[30142,"Equipos de Transmisión (excluidos internacional)  ",3362101014,"TX - MULTIPLEXOR EST.IMPU","NOTA1"]
[30142,"Equipos de Transmisión (excluidos internacional)  ",3362101118,"REVAL. TX - MULTIPLEXOR EST.IMPU","NOTA1"]
[30142,"Equipos de Transmisión (excluidos internacional)  ",3362101122,"MULTIPLEXORES","NOTA1"]
[30142,"Equipos de Transmisión (excluidos internacional)  ",3362108013,"REVAL. MULTIPLEXORES","NOTA1"]
[30142,"Equipos de Transmisión (excluidos internacional)  ",3362101143,"TX - ROUTERS","NOTA1"]
[30142,"Equipos de Transmisión (excluidos internacional)  ",3362108014,"REVAL. ROUTERS","NOTA1"]
[30142,"Equipos de Transmisión (excluidos internacional)  ",3362101124,"TARJETAS","NOTA1"]
[30142,"Equipos de Transmisión (excluidos internacional)  ",3362108016,"REVAL. TARJETAS","NOTA1"]
[30142,"Equipos de Transmisión (excluidos internacional)  ",3362101125,"MICROONDAS","NOTA1"]
[30142,"Equipos de Transmisión (excluidos internacional)  ",3362108017,"REVAL. MICROONDAS","NOTA1"]
[30143,"Equipos de Transmisión Radio  ",3362101126,"BASE TRANSCEIVER STATION (BTS)","NOTA1"]
[30143,"Equipos de Transmisión Radio  ",3362108018,"REVAL. BASE TRANSCEIVER STATION (BTS)","NOTA1"]
[30143,"Equipos de Transmisión Radio  ",3362101127,"REPETIDORES GSM","NOTA1"]
[30143,"Equipos de Transmisión Radio  ",3362108019,"REVAL. REPETIDORES GSM","NOTA1"]
[30143,"Equipos de Transmisión Radio  ",3362101128,"MICROCELULAS GSM","NOTA1"]
[30143,"Equipos de Transmisión Radio  ",3362108020,"REVAL. MV - MICROCELULAS (GSM)","NOTA1"]
[30143,"Equipos de Transmisión Radio  ",3362101129,"UNIVERSAL MOBILE TELECOMMUNICATIONS SYS","NOTA1"]
[30143,"Equipos de Transmisión Radio  ",3362108021,"REVAL. UMTS (3G)","NOTA1"]
[30143,"Equipos de Transmisión Radio  ",3362101130,"REPETIDORES 3G","NOTA1"]
[30143,"Equipos de Transmisión Radio  ",3362101613,"REVAL. REPETIDORES (3G)","NOTA1"]
[30143,"Equipos de Transmisión Radio  ",3362101131,"LONG TERM EVOLUTION (4G)","NOTA1"]
[30143,"Equipos de Transmisión Radio  ",3362108022,"REVAL. LONG TERM EVOLUTION (4G)","NOTA1"]
[30144,"Equipos de Transmisión por Satélite  ",3362101113,"PTI - RECEPTORES SATELITALES/ÓPTICOS","NOTA1"]
[30144,"Equipos de Transmisión por Satélite  ",3362101187,"REVAL. RECEPTORES SATELITALES/ÓPTICOS","NOTA1"]
[30144,"Equipos de Transmisión por Satélite  ",3362101142,"TX - RECEPTORES SATELITALES/ÓPTICOS","NOTA1"]
[30144,"Equipos de Transmisión por Satélite  ",3362101316,"REVAL. RECEPTORES SATELITALES/ÓPTICOS","NOTA1"]
[30145,"Cables y Equipos internacionales (excluyendo satélite)  ",3362101140,"TX - EQUIPO OPTICO","NOTA1"]
[30145,"Cables y Equipos internacionales (excluyendo satélite)  ",3362108011,"REVAL. EQUIPO OPTICO","NOTA1"]
[30145,"Cables y Equipos internacionales (excluyendo satélite)  ",3362101122,"MULTIPLEXORES","NOTA1"]
[30145,"Cables y Equipos internacionales (excluyendo satélite)  ",3362108013,"REVAL. MULTIPLEXORES","NOTA1"]
[30145,"Cables y Equipos internacionales (excluyendo satélite)  ",3362101123,"RUTEADORES CELULARES","NOTA1"]
[30145,"Cables y Equipos internacionales (excluyendo satélite)  ",3362108015,"REVAL. TX - RUTEADORES CELULARES","NOTA1"]
[30146,"Otros equipos de transmisión  ",3362101027,"CANALIZACION","NOTA1"]
[30146,"Otros equipos de transmisión  ",3362101039,"REVAL. CANALIZACION","NOTA1"]
[30146,"Otros equipos de transmisión  ",3362101037,"PTE - MULTITAPS","NOTA1"]
[30146,"Otros equipos de transmisión  ",3362101104,"REVAL. MULTITAPS","NOTA1"]
[30146,"Otros equipos de transmisión  ",3362101028,"PTE - POSTES","NOTA1"]
[30146,"Otros equipos de transmisión  ",3362101040,"REVAL. PTE - POSTES","NOTA1"]
[30146,"Otros equipos de transmisión  ",3362101029,"PTE - SPLITERS","NOTA1"]
[30146,"Otros equipos de transmisión  ",3362101041,"REVAL. SPLITERS","NOTA1"]
[30151,"Equipos de Fuerza (Planta Energía Eléctrica)  ",3362101134,"EQUIPO DE FUERZA","NOTA1"]
[30151,"Equipos de Fuerza (Planta Energía Eléctrica)  ",3362108025,"REVAL. EQUIPO DE FUERZA","NOTA1"]
[30151,"Equipos de Fuerza (Planta Energía Eléctrica)  ",3369101027,"CORRIENTE ALTERNA GPOS. ELECTROGENOS Y TANQ","NOTA1"]
[30151,"Equipos de Fuerza (Planta Energía Eléctrica)  ",3369109310,"REVAL. Corriente Alterna Gpos. Electrogenos y Tanq","NOTA1"]
[30151,"Equipos de Fuerza (Planta Energía Eléctrica)  ",3362101135,"CORRIENTE DIRECTA INVER.RECTIFIC.CONVERT","NOTA1"]
[30151,"Equipos de Fuerza (Planta Energía Eléctrica)  ",3362108026,"REVAL. Corriente Directa Inver.Rectific.Convert","NOTA1"]
[30151,"Equipos de Fuerza (Planta Energía Eléctrica)  ",3369101028,"CORRIENTE DIRECTA BATERIAS.","NOTA1"]
[30151,"Equipos de Fuerza (Planta Energía Eléctrica)  ",3369108312,"REVAL. Corriente Directa Baterias.","NOTA1"]
[30151,"Equipos de Fuerza (Planta Energía Eléctrica)  ",3362101136,"FZA - CORRIENTE DIRECTA ENERGIA SOLAR.","NOTA1"]
[30151,"Equipos de Fuerza (Planta Energía Eléctrica)  ",3362108027,"REVAL. FZA - Corriente Directa Energia Solar.","NOTA1"]
[30152,"Sistemas de Gestión de Red  ",3362101021,"SERVIDORES","NOTA1"]
[30152,"Sistemas de Gestión de Red  ",3362108009,"REVAL. TI - Servidores","NOTA1"]
[30152,"Sistemas de Gestión de Red  ",3362101013,"SERVIDORES (DATA CENTER)","NOTA1"]
[30152,"Sistemas de Gestión de Red  ",3362101215,"REVAL. SERVIDORES DATA CENTER","NOTA1"]
[30155,"Otros  ",3362101012,"MSC - EQUIPO DIVERSO","NOTA1"]
[30155,"Otros  ",3362102124,"REVAL. MSC - EQUIPO DIVERSO","NOTA1"]
[30155,"Otros  ",3351101038,"MSC - EQUIPO DIVERSO - FIJA","NOTA1"]
[30155,"Otros  ",3351108009,"REVAL. MSC - EQUIPO DIVERSO - FIJA","NOTA1"]
[30155,"Otros  ",3362101132,"MV - INSTALAC. EQUIPOS COMUNICAC. ARRENDADOS","NOTA1"]
[30155,"Otros  ",3362108023,"REVAL. MV - Instalac. Equipos Comunicac. Arrendado","NOTA1"]
[30155,"Otros  ",3362101133,"AIRES ACONDICIONADOS","NOTA1"]
[30155,"Otros  ",3362108024,"REVAL. AIRES ACONDICIONADOS","NOTA1"]
[30155,"Otros  ",3392108100,"HABILITACION: SEDE TECNOLOGICA A.C.M.","NOTA1"]
[30155,"Otros  ",3392108200,"HABILITACION: LOC.ADM ,TDAS Y CORNERS A.C.M.","NOTA1"]
[30155,"Otros  ",3392108400,"HABILITACION: SITES A.C.M.","NOTA1"]
[30155,"Otros  ",3392108600,"OTRAS OBRAS EN CURSO A.C.M.","NOTA1"]
[30155,"Otros  ",3392108700,"ACTIVOS POR ASIGNAR A.C.M.","NOTA1"]
[30155,"Otros  ",3392108701,"OBRAS EN CURSO FIJA A.C.M.","NOTA1"]
[30155,"Otros  ",3388800000,"REG.ACM ACTIVO FIJO","NOTA1"]
[30155,"Otros  ",3392101000,"OBRAS EN PROCESO","NOTA1"]
[30155,"Otros  ",3392104000,"OEP BASE TRANSCEIVER","NOTA1"]
[30155,"Otros  ",3392201000,"OBRAS EN PROCESO","NOTA1"]
[30155,"Otros  ",3392102000,"OBRAS EN PROCESO CAC'S","NOTA1"]
[30155,"Otros  ",3362101900,"CAPEX VARIABLE EQUIPOS MENORES","NOTA1"]
[30155,"Otros  ",3324400079,"DESMANTELAMIENTO DE RED","NOTA1"]
[30155,"Otros  ",3362300003,"AMOV - PROV.PLANTA Y EQUIPO","NOTA1"]
[30155,"Otros  ",3362101999,"PROVISION ACTIVO FIJO RADIO BASES","NOTA1"]
[30155,"Otros  ",3369300002,"AMOV - PROV.CELULARES","NOTA1"]
[30155,"Otros  ",3381100000,"CAPEX EN TRÁNSITO-INVENTARIO MANUAL","NOTA1"]
[30155,"Otros  ",3381100100,"CAPEX EN TRÁNSITO-INVENTARIO AUTOMATICO","NOTA1"]
[30155,"Otros  ",3381100101,"CAPEX EN TRÁNSITO-INVENTARIO FIJA (ALMACEN VIRTUAL","NOTA1"]
[30155,"Otros  ",3331102150,"INVENTARIO DE EQUIPOS PARA PROYECTOS","NOTA1"]
[30155,"Otros  ",3331102151,"INVENTARIO DE EQUIPOS PARA PROY DE INFRAESTRU FIJA","NOTA1"]
[30155,"Otros  ",3331102152,"INVENTARIO DE EQUIPOS PARA PROYECTOS TV DIGITAL","NOTA1"]
[30155,"Otros  ",3331102153,"INVENTARIO DE EQUIPOS PARA PROY. TV EQUIPOS ADMINI","NOTA1"]
[30155,"Otros  ",3331102170,"INVENTARIO DE FERRETERÍA PARA PROYECTOS","NOTA1"]
[30155,"Otros  ",3633000001,"DESVALORIZACION DE  EQUIPOS PARA PROYECTOS","NOTA1"]
[30155,"Otros  ",6593302002,"CPE - CABLE MODEM CTE CV TRIBUTARIO CV MASIVO (MEN","NOTA1"]
[30155,"Otros  ",6593388002,"REVAL. CPE - CABLE MODEM CTE CV TRIBUTARIO CV MASI","NOTA1"]
[30155,"Otros  ",6593301011,"CPE - EQUIPOS CLIENTES MASIVOS","NOTA1"]
[30155,"Otros  ",6593388000,"REVAL. EQUIPOS CLIENTES MASIVOS","NOTA1"]
[30155,"Otros  ",6593302001,"CPE - SET TOP BOX CV MASIVO (MENORES)","NOTA1"]
[30155,"Otros  ",6593388001,"REVAL. CPE - SET TOP BOX CV MASIVO (MENORES)","NOTA1"]
[30155,"Otros  ",6593302003,"CPE - ANTENAS CLIENTES CV MASIVO (MENORES)","NOTA1"]
[30155,"Otros  ",6593388003,"REVAL. CPE - ANTENAS CLIENTES CV MASIVO (MENORES)","NOTA1"]
[30155,"Otros  ",6593302004,"CPE - LNB ABONADO CV MASIVO (MENORES)","NOTA1"]
[30155,"Otros  ",6593388004,"REVAL. CPE - LNB ABONADO CV MASIVO (MENORES)","NOTA1"]
[30155,"Otros  ",6593302005,"UM - ACOMETIDAS/INSTALACION EN CLIENTES","NOTA1"]
[30155,"Otros  ",6593388005,"REVAL. UM - ACOMETIDAS/INSTALACION EN CLIENTES","NOTA1"]
[3021,"Terrenos  ",3311101000,"TERRENO","NOTA1"]
[3021,"Terrenos  ",3311108000,"REVAL. TERRENO","NOTA1"]
[3021,"Terrenos  ",3311101009,"INM - TERRENOS - FIJA","NOTA1"]
[3021,"Terrenos  ",3311108009,"REVAL. INM - Terrenos - Fija","NOTA1"]
[3022,"Edificios  ",3321101000,"EDIFICIOS","NOTA1"]
[3022,"Edificios  ",3321108000,"REVAL. EDIFICIOS","NOTA1"]
[3022,"Edificios  ",3324102100,"INM - INSTALACIONES Y MEJORAS","NOTA1"]
[3022,"Edificios  ",3324108210,"REVAL. INSTALACIONES Y MEJORAS","NOTA1"]
[3022,"Edificios  ",3324102000,"INM - OBRAS CIVILES","NOTA1"]
[3022,"Edificios  ",3324108200,"REVAL. OBRAS CIVILES","NOTA1"]
[3022,"Edificios  ",3324102115,"MEJORAS A INMUEBLES ARRENDADOS","NOTA1"]
[3022,"Edificios  ",3324102150,"ACTUAL. ACM MEJORAS INMUEBLES ARRENDADOS","NOTA1"]
[3022,"Edificios  ",3321101009,"INM - EDIFICIOS - FIJA","NOTA1"]
[3022,"Edificios  ",3321108009,"REVAL. INM - Edificios - Fija","NOTA1"]
[3023,"Vehículos y Ayudas Mecánicas  ",3341101000,"EQUIPO DE TRANSPORTE VEHICULOS","NOTA1"]
[3023,"Vehículos y Ayudas Mecánicas  ",3341108000,"REVAL. EQUIPO DE TRANSPORTE","NOTA1"]
[3023,"Vehículos y Ayudas Mecánicas  ",3369101029,"MONTACARGAS","NOTA1"]
[3023,"Vehículos y Ayudas Mecánicas  ",3369108313,"REVAL. MONTACARGAS","NOTA1"]
[3023,"Vehículos y Ayudas Mecánicas  ",3341101009,"EQT - UNID. TRANSP.-FIJA","NOTA1"]
[3023,"Vehículos y Ayudas Mecánicas  ",3341108009,"REVAL. UNIDAD TRANSPORTE FIJA","NOTA1"]
[3023,"Vehículos y Ayudas Mecánicas  ",3341101010,"EQT - EQUIPO DE TRANSPORTE OTROS","NOTA1"]
[3023,"Vehículos y Ayudas Mecánicas  ",3341108010,"REVAL. EQUIPO DE TRANSPORTE OTROS","NOTA1"]
[3024,"Equipos Sistemas Informáticos  ",3351101000,"EQUIPO DE COMPUTO CENTRAL","NOTA1"]
[3024,"Equipos Sistemas Informáticos  ",3351108002,"REVAL. EQUIPO DE COMPUTO CENTRAL","NOTA1"]
[3024,"Equipos Sistemas Informáticos  ",3361101000,"EQUIPO DE COMPUTO PERIFERICO","NOTA1"]
[3024,"Equipos Sistemas Informáticos  ",3361108004,"REVAL. EQUIPO DE COMPUTO PERIFERICO","NOTA1"]
[3024,"Equipos Sistemas Informáticos  ",3351101018,"EQC - EQ. COMPUTO - FIJA","NOTA1"]
[3024,"Equipos Sistemas Informáticos  ",3351108011,"REVAL. EQC - Eq. Computo - Fija","NOTA1"]
[3024,"Equipos Sistemas Informáticos  ",3362101032,"RUTEADORES","NOTA1"]
[3024,"Equipos Sistemas Informáticos  ",3362101044,"REVAL. RUTEADORES","NOTA1"]
[3024,"Equipos Sistemas Informáticos  ",3362101033,"CONMUTADORES","NOTA1"]
[3024,"Equipos Sistemas Informáticos  ",3362101045,"REVAL. CONMUTADORES","NOTA1"]
[3025,"Edificios en arrendamiento financiero  ",3222102212,"INM - LEASING - INST.SITES LSB 2008 - 2013","NOTA1"]
[3025,"Edificios en arrendamiento financiero  ",3222108202,"REVAL. INM - Leasing - Inst.Sites Lsb 2008 - 2013","NOTA1"]
[3026,"Otros activos bajo la forma de arrendamiento o leasing  ",3226101100,"MSC - LEASING - EQ. DIVERSOS LSB 2012 - 2013","NOTA1"]
[3026,"Otros activos bajo la forma de arrendamiento o leasing  ",3226108100,"REVAL. MSC - LEASING - EQ. DIVERSOS LSB 2012 - 201","NOTA1"]
[3026,"Otros activos bajo la forma de arrendamiento o leasing  ",3222102200,"TX - LEASING - INST.FIBRA OPTICA LSB 2012","NOTA1"]
[3026,"Otros activos bajo la forma de arrendamiento o leasing  ",3222108201,"REVAL. TX - Leasing - Inst.Fibra Optica Lsb 2012","NOTA1"]
[3026,"Otros activos bajo la forma de arrendamiento o leasing  ",3226301100,"MV - LEASING - EQ. COMUNIC. LSB 2008 - 2013","NOTA1"]
[3026,"Otros activos bajo la forma de arrendamiento o leasing  ",3226308100,"REVAL. MV - Leasing - Eq. Comunic. Lsb 2008 - 2013","NOTA1"]
[3026,"Otros activos bajo la forma de arrendamiento o leasing  ",3226201100,"EQC - LEASING - EQ. COMP. LSB 2012 - 2013","NOTA1"]
[3026,"Otros activos bajo la forma de arrendamiento o leasing  ",3361108010,"REVAL. EQC - Leasing - Eq. Comp. Lsb 2012 - 2013","NOTA1"]
[3027,"Otros Activos no de comunicaciones  ",3369101026,"PTI - HERRAMIENTAS MÓVIL","NOTA1"]
[3027,"Otros Activos no de comunicaciones  ",3369108303,"REVAL. HERRAMIENTAS MOVIL","NOTA1"]
[3027,"Otros Activos no de comunicaciones  ",3362101111,"PTI - INSTRUMENTOS","NOTA1"]
[3027,"Otros Activos no de comunicaciones  ",3362101185,"REVAL. INSTRUMENTOS","NOTA1"]
[3027,"Otros Activos no de comunicaciones  ",3362101020,"PTI - EQUIPO DE MEDICION MÓVIL","NOTA1"]
[3027,"Otros Activos no de comunicaciones  ",3362108008,"REVAL. EQUIPO DE MEDICION MOVIL","NOTA1"]
[3027,"Otros Activos no de comunicaciones  ",3362101237,"MOBILIARIO Y EQUIPO","NOTA1"]
[3027,"Otros Activos no de comunicaciones  ",3351108001,"REVAL. MOBILIARIO Y EQUIPO","NOTA1"]
[3027,"Otros Activos no de comunicaciones  ",3351101002,"MUEBLES Y ENSERES - FIJA","NOTA1"]
[3027,"Otros Activos no de comunicaciones  ",3351108010,"REVAL. MUEBLES Y ENSERES-FIJA","NOTA1"]
[3027,"Otros Activos no de comunicaciones  ",3369099000,"MBL -ACTIVOS MENORES","NOTA1"]
[3027,"Otros Activos no de comunicaciones  ",3369099200,"REVAL. ACTIVOS MENORES","NOTA1"]
[3027,"Otros Activos no de comunicaciones  ",3362101034,"CMI - CELULARES EMPLEADOS","NOTA1"]
[3027,"Otros Activos no de comunicaciones  ",3362101046,"REVAL. CMI - CELULARES EMPLEADOS","NOTA1"]
[311,"Concesiones  ",3411101000,"CONCESIONES Y DERECHOS - MÓVIL","NOTA1"]
[311,"Concesiones  ",3462101415,"REVAL. CONCESIONES Y DERECHOS - MÓVIL","NOTA1"]
[311,"Concesiones  ",3419101000,"CONCESIONES Y DERECHOS - FIJA","NOTA1"]
[311,"Concesiones  ",3462101426,"REVAL. CONCESIONES Y DERECHOS - FIJA","NOTA1"]
[312,"Licencias  ",3431101000,"LICENCIAS DE SOFTWARE","NOTA1"]
[312,"Licencias  ",3462101417,"REVAL. LICENCIAS DE SOFTWARE","NOTA1"]
[312,"Licencias  ",3431101009,"LICENCIAS - FIJA","NOTA1"]
[312,"Licencias  ",3462101419,"REVAL. LICENCIAS - FIJA","NOTA1"]
[314,"Software  ",3412101000,"DESARROLLO SW - FIJA","NOTA1"]
[314,"Software  ",3462101418,"REVAL. DESARROLLO SW - FIJA","NOTA1"]
[314,"Software  ",3431102000,"DESARROLLO DE SOFTWARE","NOTA1"]
[314,"Software  ",3462101420,"REVAL. DESARROLLO DE SOFTWARE","NOTA1"]
[316,"Otros Activos Intangibles  ",3411101010,"IRU PARTES RELACIONADAS","NOTA1"]
[316,"Otros Activos Intangibles  ",3462101421,"REVAL. IRU - PARTES RELACIONADAS","NOTA1"]
[316,"Otros Activos Intangibles  ",3411101011,"IRU TERCEROS","NOTA1"]
[316,"Otros Activos Intangibles  ",3462101422,"REVAL. IRU - TERCEROS","NOTA1"]
[316,"Otros Activos Intangibles  ",3431108100,"DES. DE SOFTWARE EN PROCESO A.C.M.","NOTA1"]
[316,"Otros Activos Intangibles  ",3494100000,"REG. ACM intangibles","NOTA1"]
[316,"Otros Activos Intangibles  ",3431102021,"OBRAS EN PROC X APLI","NOTA1"]
[316,"Otros Activos Intangibles  ",3411100000,"AMOV - PROV CONCES. Y DERECHOS","NOTA1"]
[316,"Otros Activos Intangibles  ",3493100000,"PROVISION INTANGIBLES LICENCIAS Y SOFTWARE","NOTA1"]
[316,"Otros Activos Intangibles  ",3431100000,"AMOV - PROV LICENCIAS Y SOFTWARE","NOTA1"]
[316,"Otros Activos Intangibles  ",3421101100,"AMOV - PROV MARCAS Y PATENTES","NOTA1"]
[32,"Otros Activos No Corrientes  ",4968100600,"GANAN DIFER-ACT. DIFER.LEASBACK - A.C.M.","NOTA1"]
[32,"Otros Activos No Corrientes  ",3471001000,"CREDITO MERCANTIL","NOTA1"]
[32,"Otros Activos No Corrientes  ",4970201001,"DIFERIDO ACT LEASEB","NOTA1"]
[32,"Otros Activos No Corrientes  ",4970202001,"DIFERIDO ACTIVO LEASEBACK/COSTO","NOTA1"]
[34111,"Equipos terminales -Teléfonos de Abonados  ",3913801002,"CPE - MANTENIMIENTO CLIENTES","NOTA1"]
[34111,"Equipos terminales -Teléfonos de Abonados  ",3913808019,"REVAL. DEP. Mantenimiento clientes","NOTA1"]
[34111,"Equipos terminales -Teléfonos de Abonados  ",3913808005,"DEP. CABLE MODEM CLIENTE","NOTA1"]
[34111,"Equipos terminales -Teléfonos de Abonados  ",3913808006,"REVAL. DEP. CABLE MODEM CLIENTE","NOTA1"]
[34112,"Equipos terminales -Teléfonos Públicos  ",3913501000,"DEP. TELEFONIA PUBLICA CELULAR (TPC)","NOTA1"]
[34112,"Equipos terminales -Teléfonos Públicos  ",3913508000,"REVAL. DEP. TELEFONOS PUBLICOS-TELEFONIA PUBLICA R","NOTA1"]
[34112,"Equipos terminales -Teléfonos Públicos  ",3913808007,"DEP. EQUIPO PARA TELEFONIA PUBLICA","NOTA1"]
[34112,"Equipos terminales -Teléfonos Públicos  ",3913808008,"REVAL. DEP. EQUIPO PARA TELEFONIA PUBLICA","NOTA1"]
[34112,"Equipos terminales -Teléfonos Públicos  ",3913801003,"DEP. PTE - EQUIPO MTTO. TPI/TPE","NOTA1"]
[34112,"Equipos terminales -Teléfonos Públicos  ",3913808025,"REVAL. DEP.PTE - Equipo Mtto. TPI/TPE","NOTA1"]
[34113,"Equipos Terminales -Televisión de Paga  ",3913808139,"DEP. SET TOP BOX","NOTA1"]
[34113,"Equipos Terminales -Televisión de Paga  ",3913808110,"REVAL. DEP. SET TOP BOX","NOTA1"]
[34113,"Equipos Terminales -Televisión de Paga  ",3913801002,"CPE - MANTENIMIENTO CLIENTES","NOTA1"]
[34113,"Equipos Terminales -Televisión de Paga  ",3913808019,"REVAL. DEP. Mantenimiento clientes","NOTA1"]
[34113,"Equipos Terminales -Televisión de Paga  ",3913808135,"DEP. ANTENAS CLIENTES","NOTA1"]
[34113,"Equipos Terminales -Televisión de Paga  ",3913808108,"REVAL. DEP. ANTENAS CLIENTES","NOTA1"]
[34113,"Equipos Terminales -Televisión de Paga  ",3913801005,"DEP. LNB","NOTA1"]
[34113,"Equipos Terminales -Televisión de Paga  ",3913801017,"REVAL. DEP. LNB","NOTA1"]
[34113,"Equipos Terminales -Televisión de Paga  ",3913808137,"DEP. LNB ABONADO","NOTA1"]
[34113,"Equipos Terminales -Televisión de Paga  ",3913808109,"REVAL. DEP. LNB Abonado","NOTA1"]
[34114,"Equipos Terminales -Internet Fijo  ",3913808003,"DEP. EQUIPO CPE CLIENTES","NOTA1"]
[34114,"Equipos Terminales -Internet Fijo  ",3913808107,"REVAL. DEP. Equipo CPE Clientes","NOTA1"]
[34114,"Equipos Terminales -Internet Fijo  ",3913801002,"CPE - MANTENIMIENTO CLIENTES","NOTA1"]
[34114,"Equipos Terminales -Internet Fijo  ",3913808019,"REVAL. DEP. Mantenimiento clientes","NOTA1"]
[34114,"Equipos Terminales -Internet Fijo  ",3913808005,"DEP. CABLE MODEM CLIENTE","NOTA1"]
[34114,"Equipos Terminales -Internet Fijo  ",3913808006,"REVAL. DEP. CABLE MODEM CLIENTE","NOTA1"]
[34115,"Equipos Terminales -Telefonía Móvil  ",3913502200,"MSC - CELULARES CLIENTES CONSUMER","NOTA1"]
[34115,"Equipos Terminales -Telefonía Móvil  ",3362101627,"REVAL. DEP. Celulares Clientes Consumer","NOTA1"]
[34115,"Equipos Terminales -Telefonía Móvil  ",3913502000,"MSC - CELULARES CLIENTES BUSINESS","NOTA1"]
[34115,"Equipos Terminales -Telefonía Móvil  ",3362101628,"REVAL. DEP. Celulares Clientes Business","NOTA1"]
[3412,"Planta y Equipo de Acceso Local  ",3913808141,"DEP. ACOMETIDAS/INSTALACION EN CLIENTES","NOTA1"]
[3412,"Planta y Equipo de Acceso Local  ",3913808112,"REVAL. DEP. ACOMETIDAS/INSTALACION EN CLIENTES","NOTA1"]
[3412,"Planta y Equipo de Acceso Local  ",3913801011,"DEP. ACOPLADORES DE RED","NOTA1"]
[3412,"Planta y Equipo de Acceso Local  ",3913801023,"REVAL. DEP. ACOPLADORES DE RED","NOTA1"]
[3412,"Planta y Equipo de Acceso Local  ",3913808044,"DEP. AMPLIFICADORES","NOTA1"]
[3412,"Planta y Equipo de Acceso Local  ",3913808321,"REVAL. DEP. AMPLIFICADORES","NOTA1"]
[3412,"Planta y Equipo de Acceso Local  ",3913808046,"DEP. ANTENAS RECEPTORAS","NOTA1"]
[3412,"Planta y Equipo de Acceso Local  ",3913808322,"REVAL. DEP. ANTENAS RECEPTORAS","NOTA1"]
[34132,"Centrales de Larga Distancia Nacional  ",3913808001,"DEP. CENTRALES TELEFONICAS ( SOFTSWITCH )","NOTA1"]
[34132,"Centrales de Larga Distancia Nacional  ",3913808102,"REVAL. DEP. CENTRALES TELEFONICAS ( softswitch )","NOTA1"]
[34132,"Centrales de Larga Distancia Nacional  ",3913808014,"DEP. CONMUTADORES PARA DATOS","NOTA1"]
[34132,"Centrales de Larga Distancia Nacional  ",3913808303,"REVAL. DEP. CONMUTADORES PARA DATOS","NOTA1"]
[34133,"Centrales de Larga Distancia Internacional  ",3913808001,"DEP. CENTRALES TELEFONICAS ( SOFTSWITCH )","NOTA1"]
[34133,"Centrales de Larga Distancia Internacional  ",3913808102,"REVAL. DEP. CENTRALES TELEFONICAS ( softswitch )","NOTA1"]
[34133,"Centrales de Larga Distancia Internacional  ",3913808014,"DEP. CONMUTADORES PARA DATOS","NOTA1"]
[34133,"Centrales de Larga Distancia Internacional  ",3913808303,"REVAL. DEP. CONMUTADORES PARA DATOS","NOTA1"]
[34134,"Controladores  ",3913801000,"DEP. BASE STATION CONTROLLER (BSC)","NOTA1"]
[34134,"Controladores  ",3913808000,"REVAL. DEP. BASE STATION CONTROLLER (BS","NOTA1"]
[34134,"Controladores  ",3913801050,"DEP. CENTRAL DE DATOS GPRS","NOTA1"]
[34134,"Controladores  ",3913808101,"REVAL. DEP. CENTRAL DE DATOS GPRS","NOTA1"]
[34134,"Controladores  ",3913801004,"DEP. MOBILE SERV. SWITCHING CENTER","NOTA1"]
[34134,"Controladores  ",3913801016,"REVAL. DEP. MOBILE SERVICES SWITCHING","NOTA1"]
[34134,"Controladores  ",3913801052,"DEP. MSC SERVER","NOTA1"]
[34134,"Controladores  ",3913808204,"REVAL. DEP. MSC SERVER","NOTA1"]
[34134,"Controladores  ",3913801053,"DEP. RADIO NETWORK CONTROLLER","NOTA1"]
[34134,"Controladores  ",3913808205,"REVAL. DEP.CX - RADIO NETWORK CONTROLLER (RNC) 3G","NOTA1"]
[34134,"Controladores  ",3913801015,"DEP. CENTRAL DE DATOS 4G","NOTA1"]
[34134,"Controladores  ",3913801027,"REVAL. DEP.CX - CENTRAL DE DATOS (4G)","NOTA1"]
[34134,"Controladores  ",3913808024,"DEP. CONTROLADORES CMTS","NOTA1"]
[34134,"Controladores  ",3913808309,"REVAL. DEP. CONTROLADORES CMTS","NOTA1"]
[34135,"Gateways  ",3913801051,"DEP. MEDIA GATEWAY","NOTA1"]
[34135,"Gateways  ",3913808202,"REVAL. DEP. MEDIA GATEWAY","NOTA1"]
[34135,"Gateways  ",3913801054,"DEP. CONVERSORES","NOTA1"]
[34135,"Gateways  ",3913808207,"REVAL. DEP. CONVERSORES","NOTA1"]
[34136,"Cabeceras  ",3913808022,"DEP. CODIFICADORES/DECODIFICADORES","NOTA1"]
[34136,"Cabeceras  ",3913808308,"REVAL. DEP. CODIFICADORES/DECODIFICADORES","NOTA1"]
[34136,"Cabeceras  ",3913801010,"DEP. EQUIPO DE CABECERA","NOTA1"]
[34136,"Cabeceras  ",3913801022,"REVAL. DEP. EQUIPO DE CABECERA","NOTA1"]
[34136,"Cabeceras  ",3913808028,"DEP. GABINETES/CHASIS/RACKS","NOTA1"]
[34136,"Cabeceras  ",3913808311,"REVAL. DEP. GABINETES/CHASIS/RACKS","NOTA1"]
[34136,"Cabeceras  ",3913808032,"DEP. MODULADORES/DEMODULADORES","NOTA1"]
[34136,"Cabeceras  ",3913808313,"REVAL. DEP. MODULADORES/DEMODULADORES","NOTA1"]
[34137,"Transmisión de Datos (Servicio Final)  ",3913808026,"DEP. EQUIPO DE ACCESO A RED DE DATOS","NOTA1"]
[34137,"Transmisión de Datos (Servicio Final)  ",3913808310,"REVAL. DEP.PTI - EQUIPO DE ACCESO A RED DE DATOS","NOTA1"]
[34137,"Transmisión de Datos (Servicio Final)  ",3913808036,"DEP. SWITCHES","NOTA1"]
[34137,"Transmisión de Datos (Servicio Final)  ",3913808315,"REVAL. DEP. SWITCHES","NOTA1"]
[34137,"Transmisión de Datos (Servicio Final)  ",3913801063,"DEP.  RUTEADORES CELULARES","NOTA1"]
[34137,"Transmisión de Datos (Servicio Final)  ",3913808215,"REVAL. DEP.TX - RUTEADORES CELULARES","NOTA1"]
[34141,"Cables de Transmisión (excluidos internacional)  ",3913801006,"F - DEP. CABLE  DE FIBRA OPTICA","NOTA1"]
[34141,"Cables de Transmisión (excluidos internacional)  ",3913801018,"REVAL. DEP. CABLE  DE FIBRA OPTICA","NOTA1"]
[34141,"Cables de Transmisión (excluidos internacional)  ",3910102209,"DEP. CABLE DE COBRE","NOTA1"]
[34141,"Cables de Transmisión (excluidos internacional)  ",3913108229,"REVAL. DEP. CABLE DE COBRE","NOTA1"]
[34141,"Cables de Transmisión (excluidos internacional)  ",3913102200,"DEP. CABLE  DE FIBRA ÓPTICA","NOTA1"]
[34141,"Cables de Transmisión (excluidos internacional)  ",3913108220,"REVAL. DEP. CABLE  DE FIBRA ÓPTICA","NOTA1"]
[34141,"Cables de Transmisión (excluidos internacional)  ",3913808009,"DEP. CABLE COAXIAL","NOTA1"]
[34141,"Cables de Transmisión (excluidos internacional)  ",3913808010,"REVAL. DEP. CABLE COAXIAL","NOTA1"]
[34142,"Equipos de Transmisión (excluidos internacional) ",3913808020,"DEP. NODOS OPTECOS","NOTA1"]
[34142,"Equipos de Transmisión (excluidos internacional) ",3913808307,"REVAL. DEP. NODOS OPTECOS","NOTA1"]
[34142,"Equipos de Transmisión (excluidos internacional) ",3913808038,"DEP. PTI - TRANSMISORES OPTICOS","NOTA1"]
[34142,"Equipos de Transmisión (excluidos internacional) ",3913808316,"REVAL. DEP.PTI - TRANSMISORES OPTICOS","NOTA1"]
[34142,"Equipos de Transmisión (excluidos internacional) ",3913801057,"DEP. CONMUTADORES PARA DATOS","NOTA1"]
[34142,"Equipos de Transmisión (excluidos internacional) ",3913808210,"REVAL. DEP. CONMUTADORES PARA DATOS","NOTA1"]
[34142,"Equipos de Transmisión (excluidos internacional) ",3913801058,"DEP. EQUIPO OPTICO","NOTA1"]
[34142,"Equipos de Transmisión (excluidos internacional) ",3913808211,"REVAL. DEP. EQUIPO OPTICO","NOTA1"]
[34142,"Equipos de Transmisión (excluidos internacional) ",3913801059,"DEP. GABINETES/CHASIS/RACKS","NOTA1"]
[34142,"Equipos de Transmisión (excluidos internacional) ",3913808212,"REVAL. DEP. GABINETES/CHASIS/RACKS","NOTA1"]
[34142,"Equipos de Transmisión (excluidos internacional) ",3913808042,"DEP. TX - MULTIPLEXOR EST.IMPU","NOTA1"]
[34142,"Equipos de Transmisión (excluidos internacional) ",3913808320,"REVAL. DEP.TX - MULTIPLEXOR EST.IMPU","NOTA1"]
[34142,"Equipos de Transmisión (excluidos internacional) ",3913801060,"DEP. MULTIPLEXORES","NOTA1"]
[34142,"Equipos de Transmisión (excluidos internacional) ",3913808213,"REVAL. DEP. MULTIPLEXORES","NOTA1"]
[34142,"Equipos de Transmisión (excluidos internacional) ",3913801062,"DEP. ROUTERS","NOTA1"]
[34142,"Equipos de Transmisión (excluidos internacional) ",3913808214,"REVAL. DEP. ROUTERS","NOTA1"]
[34142,"Equipos de Transmisión (excluidos internacional) ",3913801064,"DEP. TARJETAS","NOTA1"]
[34142,"Equipos de Transmisión (excluidos internacional) ",3913808216,"REVAL. DEP. TARJETAS","NOTA1"]
[34142,"Equipos de Transmisión (excluidos internacional) ",3913801065,"DEP. MICROONDAS","NOTA1"]
[34142,"Equipos de Transmisión (excluidos internacional) ",3913808217,"REVAL. DEP. MICROONDAS","NOTA1"]
[34143,"Equipos de Transmisión Radio  ",3913801066,"DEP. BASE TRANSCEIVER STATION (BTS)","NOTA1"]
[34143,"Equipos de Transmisión Radio  ",3913808218,"REVAL. DEP. BASE TRANSCEIVER STATION (B","NOTA1"]
[34143,"Equipos de Transmisión Radio  ",3913801067,"DEP REPETIDORES GSM","NOTA1"]
[34143,"Equipos de Transmisión Radio  ",3913808219,"REVAL. DEP. REPETIDORES GSM","NOTA1"]
[34143,"Equipos de Transmisión Radio  ",3913801068,"DEP. MICROCELULAS GSM","NOTA1"]
[34143,"Equipos de Transmisión Radio  ",3913808220,"REVAL. DEP. MICROCELULAS GSM","NOTA1"]
[34143,"Equipos de Transmisión Radio  ",3913801069,"DEP. UNIVERSAL MOBILE TELECOMMUNICATION","NOTA1"]
[34143,"Equipos de Transmisión Radio  ",3913808221,"REVAL. DEP. UMTS (3G)","NOTA1"]
[34143,"Equipos de Transmisión Radio  ",3913801070,"DEP.  REPETIDORES 3G","NOTA1"]
[34143,"Equipos de Transmisión Radio  ",3362101407,"REVAL DEP.  REPETIDORES (3G)","NOTA1"]
[34143,"Equipos de Transmisión Radio  ",3913801071,"DEP. LONG TERM EVOLUTION 4G (LTE)","NOTA1"]
[34143,"Equipos de Transmisión Radio  ",3913808222,"REVAL. DEP. LONG TERM EVOLUTION (4G)","NOTA1"]
[34144,"Equipos de Transmisión por Satélite  ",3913808034,"DEP. RECEPTORES SATELITALES/ÓPTICOS","NOTA1"]
[34144,"Equipos de Transmisión por Satélite  ",3913808314,"REVAL. DEP. RECEPTORES SATELITALES/ÓPTICOS","NOTA1"]
[34144,"Equipos de Transmisión por Satélite  ",3913801061,"DEP. RECEPTORES SATELITALES/ÓPTICOS","NOTA1"]
[34144,"Equipos de Transmisión por Satélite  ",3913808318,"REVAL. DEP. RECEPTORES SATELITALES/ÓPTICOS","NOTA1"]
[34145,"Cables y Equipos internacionales (excluyendo satélite)  ",3913801058,"DEP. EQUIPO OPTICO","NOTA1"]
[34145,"Cables y Equipos internacionales (excluyendo satélite)  ",3913808211,"REVAL. DEP. EQUIPO OPTICO","NOTA1"]
[34145,"Cables y Equipos internacionales (excluyendo satélite)  ",3913801060,"MULTIPLEXORES","NOTA1"]
[34145,"Cables y Equipos internacionales (excluyendo satélite)  ",3913808213,"REVAL. MULTIPLEXORES","NOTA1"]
[34145,"Cables y Equipos internacionales (excluyendo satélite)  ",3913801063,"RUTEADORES CELULARES","NOTA1"]
[34145,"Cables y Equipos internacionales (excluyendo satélite)  ",3913808215,"REVAL. TX - RUTEADORES CELULARES","NOTA1"]
[34146,"Otros equipos de transmisión  ",3913801007,"DEP. CANALIZACION","NOTA1"]
[34146,"Otros equipos de transmisión  ",3913801019,"REVAL. DEP. CANALIZACION","NOTA1"]
[34146,"Otros equipos de transmisión  ",3913808018,"DEP. MULTITAPS","NOTA1"]
[34146,"Otros equipos de transmisión  ",3913808306,"REVAL. DEP. MULTITAPS","NOTA1"]
[34146,"Otros equipos de transmisión  ",3913801008,"DEP. POSTES","NOTA1"]
[34146,"Otros equipos de transmisión  ",3913801020,"REVAL. DEP. POSTES","NOTA1"]
[34146,"Otros equipos de transmisión  ",3913801009,"DEP. SPLITERS","NOTA1"]
[34146,"Otros equipos de transmisión  ",3913801021,"REVAL. DEP. SPLITERS","NOTA1"]
[34151,"Equipos de Fuerza (Planta Energía Eléctrica)  ",3913801074,"DEP. EQUIPO DE FUERZA","NOTA1"]
[34151,"Equipos de Fuerza (Planta Energía Eléctrica)  ",3913808225,"REVAL. DEP. EQUIPO DE FUERZA","NOTA1"]
[34151,"Equipos de Fuerza (Planta Energía Eléctrica)  ",3913501006,"DEP. CORRIENTE ALTERNA GPOS. ELECTROGENOS Y TANQ","NOTA1"]
[34151,"Equipos de Fuerza (Planta Energía Eléctrica)  ",3913508110,"REVAL. DEP. Corriente Alterna Gpos. Electrogenos y","NOTA1"]
[34151,"Equipos de Fuerza (Planta Energía Eléctrica)  ",3913801075,"DEP. CORRIENTE DIRECTA INVER.RECTIFIC.CONVERT","NOTA1"]
[34151,"Equipos de Fuerza (Planta Energía Eléctrica)  ",3913808226,"REVAL. DEP. Corriente Directa Inver.Rectific.","NOTA1"]
[34151,"Equipos de Fuerza (Planta Energía Eléctrica)  ",3913501009,"DEP. CORRIENTE DIRECTA BATERIAS.","NOTA1"]
[34151,"Equipos de Fuerza (Planta Energía Eléctrica)  ",3913508112,"REVAL. DEP. Corriente Directa Baterias.","NOTA1"]
[34151,"Equipos de Fuerza (Planta Energía Eléctrica)  ",3913801076,"DEP. FZA - CORRIENTE DIRECTA ENERGIA SOLAR.","NOTA1"]
[34151,"Equipos de Fuerza (Planta Energía Eléctrica)  ",3913808227,"REVAL. DEP.FZA - Corriente Directa Energia Solar.","NOTA1"]
[34152,"Sistemas de Gestión de Red  ",3913801056,"DEPRECIACION SERVIDORES","NOTA1"]
[34152,"Sistemas de Gestión de Red  ",3913808209,"REVAL. DEP.TI - Servidores","NOTA1"]
[34152,"Sistemas de Gestión de Red  ",3913808040,"DEP SERVIDORES DATA CENTER","NOTA1"]
[34152,"Sistemas de Gestión de Red  ",3913808317,"REVAL. DEP. SERVIDORES DATA CENTER","NOTA1"]